bitfinex/quotes_BTCUSD_20241116
["timestamp","ask_amount","ask_price","bid_price","bid_amount"]
[1731750749193,0.109507,91318.0,91317.0,0.0017154]
[1731750749417,0.16138431,91318.0,91317.0,0.0017154]
[1731750749851,0.35334686,91318.0,91317.0,0.0017154]
[1731750753410,0.22274686,91318.0,91317.0,0.0017154]
[1731750754098,0.34874686,91318.0,91317.0,0.0017154]
[1731750755010,0.34874686,91318.0,91317.0,0.00855618]
[1731750755222,0.34684686,91318.0,91317.0,0.00855618]
[1731750756091,0.34684686,91318.0,91317.0,0.0017154]
[1731750756315,0.34929325,91318.0,91317.0,0.0017154]
[1731750757235,0.24168625,91318.0,91317.0,0.0017154]
[1731750757465,0.35119325,91318.0,91317.0,0.0017154]
[1731750759827,0.1137938,91318.0,91317.0,0.0017154]
[1731750760422,0.2233008,91318.0,91317.0,0.0017154]
[1731750761696,0.2715008,91318.0,91317.0,0.0017154]
[1731750762129,0.1619938,91318.0,91285.0,0.09825573]
[1731750762350,0.109511,91315.0,91307.0,0.109519]
[1731750762556,0.109514,91313.0,91302.0,0.219051]
[1731750762836,0.00473145,91314.0,91305.0,0.109522]
[1731750763036,0.109516,91311.0,91301.0,0.04502934]
[1731750763259,0.00551995,91312.0,91301.0,0.04502934]
[1731750763460,0.00662386,91310.0,91301.0,0.0008568]
[1731750763670,0.00661576,91311.0,91301.0,0.0008568]
[1731750763886,0.00661567,91309.0,91303.0,0.109524]
[1731750764099,0.00661571,91310.0,91301.0,0.0008568]
[1731750764303,0.00472544,91308.0,91301.0,0.0008568]
[1731750764516,0.219041,91307.0,91301.0,0.0008568]
[1731750764771,0.109524,91304.0,91301.0,0.0008568]
[1731750765214,0.109526,91302.0,91301.0,0.0008568]
[1731750765630,0.11613446,91302.0,91301.0,0.0008568]
[1731750765853,0.11283446,91302.0,91301.0,0.0008568]
[1731750766480,0.22189701,91302.0,91301.0,0.0008568]
[1731750766683,0.11567101,91302.0,91301.0,0.0008568]
[1731750767196,0.22519701,91302.0,91301.0,0.0008568]
[1731750773795,0.27013961,91302.0,91301.0,0.0008568]
[1731750774026,0.22519701,91302.0,91301.0,0.0008568]
[1731750776385,0.27479701,91302.0,91301.0,0.0008568]
[1731750779277,0.27288858,91302.0,91301.0,0.0008568]
[1731750785742,0.35408858,91302.0,91301.0,0.0008568]
[1731750785959,0.36408858,91302.0,91301.0,0.0008568]
[1731750786867,0.40819937,91302.0,91301.0,0.0008568]
[1731750790407,0.55538464,91302.0,91301.0,0.0008568]
[1731750790633,0.40819937,91302.0,91301.0,0.0008568]
[1731750792706,0.57236974,91302.0,91301.0,0.0008568]
[1731750792913,0.76989041,91302.0,91301.0,0.0008568]
[1731750793114,0.96613743,91302.0,91301.0,0.0008568]
[1731750793933,0.01,91301.0,91300.0,0.00156159]
[1731750794140,0.72088059,91301.0,91300.0,0.00156159]
[1731750794333,0.72754333,91301.0,91300.0,0.00156159]
[1731750794772,0.7275115,91301.0,91300.0,0.00156159]
[1731750795552,0.80899212,91301.0,91300.0,0.00156159]
[1731750795786,0.7275115,91301.0,91300.0,0.00156159]
[1731750795996,0.80899212,91301.0,91300.0,0.00156159]
[1731750796602,0.7275115,91301.0,91300.0,0.00156159]
[1731750797265,1.00493869,91301.0,91300.0,0.00156159]
[1731750797490,1.05392534,91301.0,91300.0,0.00156159]
[1731750797744,0.80899212,91301.0,91300.0,0.00156159]
[1731750798813,0.119553,91280.0,91279.0,0.0017152]
[1731750799036,0.36035095,91280.0,91279.0,0.0017152]
[1731750799262,0.51733157,91280.0,91279.0,0.0017152]
[1731750799478,0.43785095,91280.0,91279.0,0.0017152]
[1731750799708,0.43585095,91280.0,91279.0,0.0017152]
[1731750800150,0.51733157,91280.0,91279.0,0.0017152]
[1731750800383,0.51933157,91280.0,91279.0,0.0017152]
[1731750800623,0.54233157,91280.0,91279.0,0.0017152]
[1731750800847,0.78924654,91280.0,91279.0,0.0017152]
[1731750801063,1.00364165,91280.0,91279.0,0.0017152]
[1731750801507,1.19932549,91280.0,91279.0,0.0017152]
[1731750801726,1.00364165,91280.0,91279.0,0.0017152]
[1731750802135,1.1127042,91280.0,91279.0,0.0017152]
[1731750802560,1.2481434,91280.0,91279.0,0.0017152]
[1731750802771,1.29362461,91280.0,91279.0,0.0017152]
[1731750803476,1.04912286,91280.0,91279.0,0.0017152]
[1731750803687,1.04871738,91280.0,91279.0,0.0017152]
[1731750804357,1.29313954,91280.0,91279.0,0.0017152]
[1731750804575,1.15777993,91280.0,91279.0,0.0017152]
[1731750804811,0.94223676,91280.0,91279.0,0.0017152]
[1731750805038,0.58133216,91280.0,91279.0,0.0017152]
[1731750805261,0.68035877,91280.0,91279.0,0.0017152]
[1731750805484,0.58260909,91280.0,91279.0,0.0017152]
[1731750806142,0.58460909,91280.0,91279.0,0.0017152]
[1731750806353,0.68235877,91280.0,91279.0,0.0017152]
[1731750806558,0.58460909,91280.0,91279.0,0.0017152]
[1731750806775,0.58260909,91280.0,91279.0,0.0017152]
[1731750807191,0.58460909,91280.0,91279.0,0.0017152]
[1731750807843,0.58260909,91280.0,91279.0,0.0017152]
[1731750808067,0.35064726,91280.0,91279.0,0.0017152]
[1731750808302,0.43712788,91280.0,91279.0,0.0017152]
[1731750809168,0.43212788,91280.0,91279.0,0.0017152]
[1731750809421,0.43712788,91280.0,91279.0,0.0017152]
[1731750816726,0.22454726,91280.0,91279.0,0.0017152]
[1731750819658,0.11499426,91280.0,91279.0,0.0017152]
[1731750820111,0.11499426,91280.0,91279.0,0.1112692]
[1731750820330,0.11499426,91280.0,91279.0,0.1909692]
[1731750820547,0.11499426,91280.0,91279.0,0.2396692]
[1731750820548,0.10906255,91280.0,91279.0,0.2396692]
[1731750820769,0.11502945,91280.0,91279.0,0.2396692]
[1731750822176,0.10906255,91280.0,91279.0,0.2396692]
[1731750822633,0.10906255,91280.0,91279.0,0.1301152]
[1731750822860,0.10906255,91280.0,91279.0,0.2396692]
[1731750823318,0.11503192,91280.0,91279.0,0.2396692]
[1731750823770,0.10906255,91280.0,91279.0,0.2396692]
[1731750823979,0.11503192,91280.0,91279.0,0.2396692]
[1731750824622,0.10906255,91280.0,91279.0,0.2396692]
[1731750825036,0.11503192,91280.0,91279.0,0.2396692]
[1731750825965,0.10906255,91280.0,91279.0,0.2396692]
[1731750827591,0.16417037,91289.0,91288.0,0.109543]
[1731750827822,0.27323292,91289.0,91281.0,0.08148062]
[1731750828028,0.10906255,91288.0,91281.0,0.08148062]
[1731750828278,0.10906255,91288.0,91287.0,0.109544]
[1731750829173,0.10906255,91288.0,91283.0,0.219098]
[1731750829385,0.10906255,91288.0,91287.0,0.109544]
[1731750830512,0.10906255,91288.0,91281.0,0.08148062]
[1731750830760,0.10906255,91288.0,91286.0,0.109545]
[1731750831191,0.10906255,91288.0,91282.0,0.219101]
[1731750831429,0.10906255,91288.0,91287.0,0.109544]
[1731750835278,0.10906255,91288.0,91285.0,0.109546]
[1731750835489,0.10906255,91288.0,91286.0,0.109545]
[1731750837080,0.10906255,91288.0,91283.0,0.328647]
[1731750837289,0.10906255,91288.0,91285.0,0.109546]
[1731750837514,0.00603407,91287.0,91285.0,0.109546]
[1731750837724,0.10906255,91286.0,91283.0,0.05145811]
[1731750837938,0.10906255,91286.0,91280.0,0.08148062]
[1731750837939,0.11509657,91286.0,91280.0,0.08148062]
[1731750838189,0.11509657,91286.0,91284.0,0.109547]
[1731750838844,0.11509657,91286.0,91285.0,0.109547]
[1731750840337,0.11509657,91286.0,91285.0,0.19102762]
[1731750840563,0.11509657,91286.0,91285.0,0.23742762]
[1731750840781,0.10906255,91286.0,91285.0,0.23742762]
[1731750840989,0.11510329,91286.0,91285.0,0.23742762]
[1731750841614,0.11510329,91286.0,91285.0,0.31852762]
[1731750841848,0.00604074,91286.0,91285.0,0.31852762]
[1731750842290,0.16502797,91300.0,91285.0,0.20898062]
[1731750842501,0.16417037,91290.0,91289.0,0.109541]
[1731750842717,0.10906255,91290.0,91289.0,0.109542]
[1731750843584,0.16502797,91300.0,91285.0,0.42807162]
[1731750843804,0.10906255,91299.0,91297.0,0.109532]
[1731750844061,0.10906255,91299.0,91292.0,0.219077]
[1731750844295,0.10906255,91299.0,91285.0,0.42807162]
[1731750844536,0.10906255,91299.0,91286.0,0.109545]
[1731750844755,0.10906255,91299.0,91285.0,0.42807162]
[1731750844968,0.10906255,91299.0,91288.0,0.438172]
[1731750845409,0.10906255,91299.0,91295.0,0.109534]
[1731750845620,0.10906255,91299.0,91296.0,0.109533]
[1731750845841,0.10906255,91299.0,91294.0,0.109535]
[1731750846076,0.10906255,91299.0,91296.0,0.109533]
[1731750846313,0.10906255,91299.0,91291.0,0.219079]
[1731750846314,0.10906255,91299.0,91293.0,0.109536]
[1731750846526,0.21859255,91299.0,91293.0,0.109536]
[1731750846737,0.10906255,91299.0,91295.0,0.109534]
[1731750846963,0.10906255,91299.0,91295.0,0.155934]
[1731750847172,0.10906255,91299.0,91295.0,0.237034]
[1731750847383,0.10906255,91299.0,91295.0,0.1275]
[1731750847817,0.109531,91298.0,91295.0,0.0811]
[1731750848039,0.10906255,91297.0,91291.0,0.08148062]
[1731750848268,0.109534,91296.0,91291.0,0.08148062]
[1731750848479,0.10906255,91295.0,91292.0,0.109537]
[1731750848697,0.10906255,91295.0,91290.0,0.0811]
[1731750848915,0.10906255,91295.0,91293.0,0.109537]
[1731750849180,0.10906255,91295.0,91290.0,0.19064]
[1731750849395,0.11557711,91294.0,91290.0,0.0811]
[1731750849640,0.22463966,91294.0,91290.0,0.0811]
[1731750849850,0.11510366,91294.0,91290.0,0.0811]
[1731750850485,0.11510366,91294.0,91290.0,0.19064]
[1731750850716,0.109539,91291.0,91290.0,0.0811]
[1731750850949,0.22464066,91294.0,91290.0,0.0811]
[1731750851158,0.00604097,91291.0,91286.0,0.08148062]
[1731750851398,0.10906255,91294.0,91286.0,0.08148062]
[1731750851638,0.00604092,91290.0,91286.0,0.08148062]
[1731750851855,0.109539,91292.0,91286.0,0.08148062]
[1731750852067,0.00604088,91289.0,91287.0,0.109544]
[1731750852274,0.109539,91291.0,91286.0,0.08148062]
[1731750852484,0.00604083,91288.0,91286.0,0.08148062]
[1731750852703,0.10906255,91294.0,91286.0,0.08148062]
[1731750852935,0.00604079,91287.0,91286.0,0.19102462]
[1731750853160,0.109539,91292.0,91286.0,0.19102462]
[1731750853392,0.00604843,91287.0,91286.0,0.19102462]
[1731750853624,0.109539,91292.0,91286.0,0.19102462]
[1731750853846,0.10906255,91294.0,91286.0,0.19102462]
[1731750854084,0.00604861,91291.0,91287.0,0.109544]
[1731750854354,0.10906255,91294.0,91287.0,0.109544]
[1731750854587,0.00604857,91290.0,91287.0,0.109544]
[1731750854818,0.10906255,91294.0,91287.0,0.109544]
[1731750855046,0.00604852,91289.0,91287.0,0.109544]
[1731750855268,0.109538,91292.0,91287.0,0.109544]
[1731750855512,0.00621489,91288.0,91287.0,0.109544]
[1731750855744,0.109538,91292.0,91287.0,0.109544]
[1731750855951,0.00621489,91288.0,91287.0,0.109544]
[1731750856192,0.109538,91292.0,91287.0,0.109544]
[1731750856411,0.00621489,91288.0,91286.0,0.08148062]
[1731750856618,0.109546,91286.0,91283.0,0.0017156]
[1731750857083,0.00621475,91285.0,91283.0,0.0017156]
[1731750857520,0.32814455,91290.0,91283.0,0.0017156]
[1731750857733,0.00621471,91284.0,91283.0,0.0017156]
[1731750857960,0.109547,91285.0,91283.0,0.0017156]
[1731750858175,0.00621471,91284.0,91283.0,0.0017156]
[1731750859046,0.328626,91289.0,91283.0,0.0017156]
[1731750859279,0.00621471,91284.0,91283.0,0.0017156]
[1731750859513,0.109546,91286.0,91283.0,0.0017156]
[1731750859723,0.00621471,91284.0,91278.0,0.18758116]
[1731750859934,0.00621471,91284.0,91278.0,0.109555]
[1731750860167,0.109547,91285.0,91278.0,0.109555]
[1731750860401,0.00621466,91283.0,91279.0,0.109553]
[1731750860620,0.109547,91285.0,91279.0,0.109553]
[1731750860862,0.00621462,91282.0,91278.0,0.219108]
[1731750861094,0.1104038,91286.0,91280.0,0.109552]
[1731750861307,0.0062259,91281.0,91280.0,0.109552]
[1731750861516,0.109547,91285.0,91281.0,0.08148062]
[1731750861760,0.0008578,91286.0,91281.0,0.08148062]
[1731750862005,0.1104038,91286.0,91281.0,0.08148062]
[1731750862247,0.0008578,91286.0,91281.0,0.19103062]
[1731750862712,0.1104028,91286.0,91281.0,0.19103062]
[1731750863174,0.0008578,91286.0,91282.0,0.10955]
[1731750863666,0.0008578,91286.0,91282.0,0.32865]
[1731750863884,0.0008578,91286.0,91282.0,0.109549]
[1731750864815,0.0008578,91286.0,91284.0,0.109547]
[1731750865289,0.0008578,91286.0,91282.0,0.10955]
[1731750865519,0.0008578,91286.0,91283.0,0.109548]
[1731750867416,0.0008578,91286.0,91281.0,0.08148062]
[1731750867417,0.0008578,91286.0,91281.0,0.19103162]
[1731750867666,0.00622531,91285.0,91281.0,0.19103162]
[1731750867895,0.00622531,91285.0,91282.0,0.10955]
[1731750869551,0.00622531,91285.0,91281.0,0.08148062]
[1731750869814,0.00622531,91285.0,91283.0,0.109548]
[1731750870941,0.00622531,91285.0,91284.0,0.109548]
[1731750872686,0.00622531,91285.0,91282.0,0.1112646]
[1731750872912,0.00622531,91285.0,91283.0,0.109548]
[1731750873755,0.00622531,91285.0,91284.0,0.109548]
[1731750874215,0.00622531,91285.0,91284.0,0.10820877]
[1731750874447,0.00622531,91285.0,91284.0,0.10778096]
[1731750875157,0.0008578,91286.0,91285.0,0.109547]
[1731750875637,0.0008578,91286.0,91285.0,0.31862762]
[1731750875870,0.0008578,91286.0,91285.0,0.33046984]
[1731750876117,0.0008578,91286.0,91285.0,0.24898922]
[1731750876536,0.0008578,91286.0,91285.0,0.242147]
[1731750876801,0.0008578,91286.0,91285.0,0.24898889]
[1731750877028,0.0008578,91286.0,91285.0,0.242147]
[1731750877939,0.0008578,91286.0,91285.0,0.2488811]
[1731750880031,0.0008578,91286.0,91285.0,0.2438811]
[1731750880486,0.0008578,91286.0,91285.0,0.00684188]
[1731750880723,0.0008578,91286.0,91283.0,0.219098]
[1731750881169,0.0008578,91286.0,91285.0,0.109547]
[1731750881389,0.0008578,91286.0,91285.0,0.19102762]
[1731750882801,0.0008578,91286.0,91285.0,0.19444884]
[1731750883709,0.0008578,91286.0,91285.0,0.21223896]
[1731750883939,0.0008578,91286.0,91285.0,0.21223894]
[1731750884182,0.0008578,91286.0,91285.0,0.21223909]
[1731750884678,0.0008578,91286.0,91285.0,0.20129123]
[1731750885801,0.1252578,91286.0,91285.0,0.01026361]
[1731750886035,0.2348028,91286.0,91285.0,0.01026361]
[1731750886272,0.24044601,91286.0,91285.0,0.01026361]
[1731750886758,0.24044601,91286.0,91285.0,0.00684241]
[1731750886980,0.34999301,91286.0,91282.0,0.0017156]
[1731750887163,0.109549,91284.0,91282.0,0.0017156]
[1731750887427,0.109549,91284.0,91283.0,0.00684272]
[1731750887854,0.109549,91284.0,91283.0,0.01026408]
[1731750888322,0.21861155,91284.0,91283.0,0.01026408]
[1731750888535,0.26441155,91284.0,91283.0,0.01026408]
[1731750889882,0.26441155,91284.0,91283.0,0.02121313]
[1731750890357,0.26441155,91284.0,91283.0,0.01779177]
[1731750890575,0.26441155,91284.0,91283.0,0.02121335]
[1731750890802,0.26441155,91284.0,91283.0,0.01779177]
[1731750891678,0.15486255,91284.0,91283.0,0.01779177]
[1731750891896,0.15486255,91284.0,91283.0,0.02121335]
[1731750892143,0.26441055,91284.0,91283.0,0.02121335]
[1731750893654,0.26441055,91284.0,91283.0,0.02121383]
[1731750896883,0.26441055,91284.0,91283.0,0.02292943]
[1731750897529,0.27005043,91284.0,91283.0,0.02292943]
[1731750900837,0.27005043,91284.0,91283.0,0.01950785]
[1731750901053,0.34755043,91284.0,91283.0,0.01950785]
[1731750902213,0.39639576,91284.0,91283.0,0.00855877]
[1731750902397,0.54391317,91284.0,91283.0,0.00855877]
[1731750902665,0.75930593,91284.0,91283.0,0.0017156]
[1731750902912,1.05434076,91284.0,91283.0,0.0017156]
[1731750903364,0.89136848,91284.0,91283.0,0.0017156]
[1731750903600,0.89636848,91284.0,91283.0,0.0017156]
[1731750903811,0.238654,91279.0,91278.0,0.0017156]
[1731750904027,0.34771655,91279.0,91278.0,0.0017156]
[1731750904235,0.71620184,91279.0,91278.0,0.0017156]
[1731750905514,0.96179154,91279.0,91278.0,0.0017156]
[1731750906008,0.71620184,91279.0,91278.0,0.0017156]
[1731750906230,0.9617042,91279.0,91278.0,0.0017156]
[1731750906452,0.71620184,91279.0,91278.0,0.0017156]
[1731750906896,0.91254661,91279.0,91278.0,0.0017156]
[1731750907333,0.9120026,91279.0,91278.0,0.0017156]
[1731750907542,0.71566767,91279.0,91278.0,0.0017156]
[1731750907979,0.71557199,91279.0,91278.0,0.0017156]
[1731750908422,0.35329167,91279.0,91278.0,0.0017156]
[1731750911972,0.35329167,91279.0,91278.0,0.0017156]
[1731750913329,0.45132458,91279.0,91278.0,0.0017156]
[1731750914430,0.44632458,91279.0,91278.0,0.0017156]
[1731750914611,0.34829167,91279.0,91278.0,0.0017156]
[1731750924633,0.11463767,91279.0,91278.0,0.0017156]
[1731750924874,0.00557512,91279.0,91278.0,0.1112706]
[1731750925110,0.0017156,91283.0,91278.0,0.0017156]
[1731750925367,0.0017156,91283.0,91282.0,0.10955]
[1731750925600,0.00584989,91282.0,91278.0,0.0017156]
[1731750925828,0.0017156,91283.0,91279.0,0.109553]
[1731750926557,0.0017156,91283.0,91280.0,0.109553]
[1731750926815,0.00586245,91282.0,91278.0,0.1112706]
[1731750927045,0.00586245,91282.0,91280.0,0.109552]
[1731750927496,0.00586245,91282.0,91279.0,0.219108]
[1731750927741,0.00586245,91282.0,91281.0,0.19103162]
[1731750928198,0.0017156,91283.0,91281.0,0.19103162]
[1731750928199,0.0017156,91283.0,91281.0,0.09174626]
[1731750928411,0.0017156,91283.0,91281.0,0.0849025]
[1731750928412,0.00586245,91282.0,91281.0,0.0849025]
[1731750928641,0.00586245,91282.0,91281.0,0.08148062]
[1731750928882,0.00586245,91282.0,91281.0,0.08832425]
[1731750929556,0.0017156,91283.0,91281.0,0.08832425]
[1731750929776,0.0058814,91282.0,91281.0,0.08832425]
[1731750930939,0.0058814,91282.0,91281.0,0.08678121]
[1731750932518,0.109554,91279.0,91278.0,0.0017156]
[1731750932752,0.21861655,91279.0,91278.0,0.00855925]
[1731750933019,0.22449778,91279.0,91278.0,0.00855925]
[1731750933220,0.26989778,91279.0,91278.0,0.0017156]
[1731750937270,0.36797845,91279.0,91278.0,0.0017156]
[1731750938437,0.26989778,91279.0,91278.0,0.0017156]
[1731750938662,0.49581878,91279.0,91278.0,0.0017156]
[1731750939133,0.34869778,91279.0,91278.0,0.0017156]
[1731750939354,0.49581878,91279.0,91278.0,0.0017156]
[1731750939994,0.49602049,91279.0,91278.0,0.0017156]
[1731750940219,0.71123455,91279.0,91278.0,0.0017156]
[1731750940925,0.90741467,91279.0,91278.0,0.0017156]
[1731750941597,0.71125333,91279.0,91278.0,0.0017156]
[1731750944371,0.34869778,91279.0,91278.0,0.0017156]
[1731750944606,0.26989778,91279.0,91278.0,0.0017156]
[1731750944848,0.63255024,91279.0,91278.0,0.0017156]
[1731750946429,0.87815614,91279.0,91278.0,0.0017156]
[1731750951363,0.63255024,91279.0,91278.0,0.0017156]
[1731750952498,0.71365024,91279.0,91278.0,0.0017156]
[1731750952718,0.71865024,91279.0,91278.0,0.0017156]
[1731750953426,0.71886524,91279.0,91278.0,0.0017156]
[1731750955510,0.71386524,91279.0,91278.0,0.0017156]
[1731750955743,0.91049375,91279.0,91278.0,0.0017156]
[1731750955963,0.35099778,91279.0,91278.0,0.0017156]
[1731750958477,0.49847337,91279.0,91278.0,0.0017156]
[1731750959612,0.41737337,91279.0,91278.0,0.0017156]
[1731750960088,0.26989778,91279.0,91278.0,0.0017156]
[1731750960299,0.41737337,91279.0,91278.0,0.0017156]
[1731750961395,0.26989778,91279.0,91278.0,0.0017156]
[1731750962081,0.22449778,91279.0,91278.0,0.0017156]
[1731750962322,0.11494378,91279.0,91278.0,0.0017156]
[1731750962537,0.00588123,91279.0,91278.0,0.1112706]
[1731750962995,0.0017156,91281.0,91280.0,0.109553]
[1731750963235,0.0017156,91281.0,91280.0,0.19103362]
[1731750963932,0.0017156,91281.0,91280.0,0.109553]
[1731750965091,0.0017156,91281.0,91280.0,0.225553]
[1731750968999,0.0017156,91281.0,91280.0,0.189253]
[1731750973098,0.0017156,91281.0,91280.0,0.109553]
[1731750974613,0.0017156,91281.0,91278.0,0.120448]
[1731750974839,0.0017156,91281.0,91278.0,0.230003]
[1731750975319,0.00599434,91280.0,91278.0,0.19275122]
[1731750978530,0.10906255,91279.0,91278.0,0.08319622]
[1731750978761,0.35381083,91279.0,91278.0,0.0017156]
[1731750987948,0.24425683,91279.0,91278.0,0.0017156]
[1731750988457,0.16145683,91279.0,91278.0,0.0017156]
[1731750990042,0.16145683,91279.0,91274.0,0.08148062]
[1731750990499,0.00599428,91279.0,91278.0,0.109555]
[1731750990756,0.0017156,91281.0,91280.0,0.109553]
[1731750990966,0.0017156,91281.0,91280.0,0.19103362]
[1731750994855,0.0017156,91281.0,91278.0,0.0008578]
[1731750995084,0.236254,91279.0,91278.0,0.0008578]
[1731750995317,0.34531655,91279.0,91278.0,0.0008578]
[1731750995523,0.35206806,91279.0,91278.0,0.0008578]
[1731750997783,0.24251406,91279.0,91278.0,0.0008578]
[1731750998011,0.35206806,91279.0,91278.0,0.0008578]
[1731751000626,0.24251406,91279.0,91278.0,0.0008578]
[1731751001063,0.35206806,91279.0,91278.0,0.0008578]
[1731751001266,0.24251406,91279.0,91278.0,0.0008578]
[1731751001696,0.35206806,91279.0,91278.0,0.0008578]
[1731751005760,0.24251406,91279.0,91278.0,0.0008578]
[1731751006448,0.35206806,91279.0,91278.0,0.0008578]
[1731751014032,0.45020375,91279.0,91278.0,0.0008578]
[1731751014268,0.35206806,91279.0,91278.0,0.0008578]
[1731751015373,0.45020375,91279.0,91278.0,0.0008578]
[1731751015583,0.35206806,91279.0,91278.0,0.0008578]
[1731751015822,0.45022637,91279.0,91278.0,0.0008578]
[1731751016298,0.35206806,91279.0,91278.0,0.0008578]
[1731751017413,0.35378386,91279.0,91278.0,0.0008578]
[1731751019253,0.24422986,91279.0,91278.0,0.0008578]
[1731751019492,0.11752986,91279.0,91278.0,0.1104128]
[1731751022016,0.00846731,91279.0,91278.0,0.1104128]
[1731751022237,0.00846731,91279.0,91278.0,0.19204087]
[1731751022468,0.0017158,91279.0,91278.0,0.19204087]
[1731751022911,0.0017158,91279.0,91278.0,0.2347374]
[1731751026698,0.0017158,91279.0,91278.0,0.2397374]
[1731751032013,0.0017158,91279.0,91278.0,0.2347374]
[1731751032238,0.0017158,91279.0,91278.0,0.0008578]
[1731751033104,0.11077835,91279.0,91278.0,0.0008578]
[1731751033332,0.198239,91279.0,91278.0,0.0008578]
[1731751034434,0.307793,91279.0,91278.0,0.0008578]
[1731751037465,0.198239,91279.0,91278.0,0.0008578]
[1731751038562,0.198239,91279.0,91278.0,0.1104128]
[1731751038776,0.198239,91279.0,91278.0,0.0008578]
[1731751039418,0.198239,91279.0,91278.0,0.1104128]
[1731751039633,0.00767645,91279.0,91278.0,0.1104128]
[1731751040144,0.0017158,91279.0,91278.0,0.1104128]
[1731751040388,0.0017158,91279.0,91278.0,0.0008578]
[1731751041087,0.0076695,91279.0,91278.0,0.0008578]
[1731751041291,0.0017158,91279.0,91278.0,0.1104128]
[1731751041500,0.0076695,91279.0,91278.0,0.1104128]
[1731751041718,0.0017158,91279.0,91278.0,0.1104128]
[1731751045769,0.00767933,91279.0,91278.0,0.1104128]
[1731751046848,0.0017158,91279.0,91278.0,0.1104128]
[1731751049938,0.00767933,91279.0,91278.0,0.1104128]
[1731751050767,0.00767933,91279.0,91278.0,0.0008578]
[1731751050988,0.05617933,91279.0,91278.0,0.0008578]
[1731751051128,0.05617933,91279.0,91278.0,0.1104128]
[1731751051328,0.13647933,91279.0,91278.0,0.1104128]
[1731751052036,0.13647933,91279.0,91278.0,0.0008578]
[1731751052221,0.35509588,91279.0,91278.0,0.0008578]
[1731751053182,0.24554188,91279.0,91278.0,0.0008578]
[1731751053395,0.35509588,91279.0,91278.0,0.0008578]
[1731751053615,0.24554188,91279.0,91278.0,0.0008578]
[1731751058597,0.35509588,91279.0,91278.0,0.0008578]
[1731751058801,0.24554188,91279.0,91278.0,0.0008578]
[1731751064247,0.24554188,91279.0,91278.0,0.1104128]
[1731751064664,0.24554188,91279.0,91278.0,0.0008578]
[1731751065091,0.24554188,91279.0,91278.0,0.1104128]
[1731751065347,0.00767933,91279.0,91278.0,0.1104128]
[1731751065776,0.0017158,91279.0,91278.0,0.1104128]
[1731751065981,0.00691632,91279.0,91278.0,0.1104128]
[1731751066181,0.0017158,91279.0,91278.0,0.1104128]
[1731751066391,0.00691632,91279.0,91278.0,0.1104128]
[1731751066651,0.0017158,91279.0,91278.0,0.1104128]
[1731751066885,0.00691632,91279.0,91278.0,0.1104128]
[1731751067093,0.0017158,91279.0,91278.0,0.1104128]
[1731751067242,0.00691632,91279.0,91278.0,0.1104128]
[1731751067449,0.0017158,91279.0,91278.0,0.1104128]
[1731751067651,0.00691632,91279.0,91278.0,0.1104128]
[1731751067871,0.0017158,91279.0,91278.0,0.1104128]
[1731751068237,0.00691632,91279.0,91278.0,0.1104128]
[1731751068438,0.0017158,91279.0,91278.0,0.1104128]
[1731751068662,0.00691632,91279.0,91278.0,0.1104128]
[1731751069000,0.0017158,91279.0,91278.0,0.1104128]
[1731751069207,0.00691632,91279.0,91278.0,0.1104128]
[1731751069326,0.0017158,91279.0,91278.0,0.1104128]
[1731751070400,0.00692502,91279.0,91278.0,0.1104128]
[1731751072788,0.00692502,91279.0,91278.0,0.0008578]
[1731751073052,0.11598757,91279.0,91278.0,0.0008578]
[1731751073256,0.35114157,91279.0,91278.0,0.0008578]
[1731751076083,0.24158757,91279.0,91278.0,0.0008578]
[1731751076285,0.35114157,91279.0,91278.0,0.0008578]
[1731751081100,0.24158757,91279.0,91278.0,0.0824633]
[1731751081302,0.00692502,91279.0,91278.0,0.1920183]
[1731751081718,0.0017158,91279.0,91278.0,0.1920183]
[1731751081940,0.0017158,91279.0,91278.0,0.0008578]
[1731751082070,0.22033235,91279.0,91278.0,0.0008578]
[1731751082314,0.2255344,91279.0,91278.0,0.0008578]
[1731751083720,0.1159804,91279.0,91278.0,0.0008578]
[1731751085009,0.2255344,91279.0,91278.0,0.0008578]
[1731751086447,0.2731344,91279.0,91278.0,0.0008578]
[1731751088102,0.3511344,91279.0,91278.0,0.0008578]
[1731751095420,0.4494244,91279.0,91278.0,0.0008578]
[1731751095917,0.3511344,91279.0,91278.0,0.0008578]
[1731751100331,0.4377399,91279.0,91278.0,0.0008578]
[1731751100522,0.80035961,91279.0,91278.0,0.0008578]
[1731751101382,0.80035961,91279.0,91272.0,0.0008579]
[1731751101383,0.114561,91273.0,91272.0,0.0008579]
[1731751101594,0.79214876,91273.0,91272.0,0.0008579]
[1731751101823,0.80222254,91273.0,91272.0,0.0008579]
[1731751102462,0.80222254,91273.0,91265.0,0.0017154]
[1731751102463,0.249969,91266.0,91265.0,0.0017154]
[1731751102684,0.239985,91253.0,91252.0,0.16417037]
[1731751102883,0.109602,91239.0,91232.0,0.10961]
[1731751103136,0.109602,91239.0,91236.0,0.16417037]
[1731751103360,0.00529542,91238.0,91232.0,0.10961]
[1731751103585,0.00529542,91238.0,91231.0,0.0816055]
[1731751103811,0.11489842,91238.0,91231.0,0.0816055]
[1731751104015,0.00529542,91238.0,91231.0,0.1912165]
[1731751104218,0.00529542,91238.0,91231.0,0.0816055]
[1731751105024,0.11489842,91238.0,91231.0,0.0816055]
[1731751105231,0.109605,91237.0,91231.0,0.0816055]
[1731751105454,0.00518541,91236.0,91231.0,0.0816055]
[1731751107679,0.109603,91238.0,91231.0,0.0816055]
[1731751107892,0.11426181,91237.0,91231.0,0.0816055]
[1731751108093,0.00465681,91237.0,91231.0,0.0816055]
[1731751108298,0.109606,91236.0,91228.0,0.04185647]
[1731751108495,0.109606,91236.0,91233.0,0.0816055]
[1731751108496,0.00465675,91236.0,91233.0,0.0816055]
[1731751108716,0.11426275,91236.0,91233.0,0.0816055]
[1731751109505,0.00465675,91236.0,91233.0,0.0816055]
[1731751109947,0.109603,91238.0,91233.0,0.0816055]
[1731751110156,0.0046567,91235.0,91233.0,0.0816055]
[1731751110363,0.109603,91238.0,91233.0,0.0816055]
[1731751110569,0.00465664,91234.0,91233.0,0.0816055]
[1731751110778,0.109604,91237.0,91233.0,0.0816055]
[1731751110985,0.00465664,91234.0,91233.0,0.0816055]
[1731751111205,0.0809,91239.0,91233.0,0.0824634]
[1731751111418,0.0809,91239.0,91238.0,0.0816055]
[1731751112262,0.190502,91239.0,91233.0,0.0008579]
[1731751112472,0.190502,91239.0,91236.0,0.0816055]
[1731751113446,0.0461,91251.0,91242.0,0.109598]
[1731751113670,0.16417037,91248.0,91233.0,0.0008579]
[1731751113904,0.0461,91251.0,91247.0,0.0816055]
[1731751114109,0.16417037,91248.0,91247.0,0.1911975]
[1731751114313,0.109589,91250.0,91247.0,0.0816055]
[1731751114519,0.0461,91251.0,91247.0,0.0816055]
[1731751114520,0.109591,91248.0,91247.0,0.0816055]
[1731751114729,0.265276,91251.0,91241.0,0.0816055]